bitfinex/quotes_ETHUSD_20251012
["timestamp","ask_amount","ask_price","bid_price","bid_amount"]
[1760302321917,0.4386,4182.7,4179.9,0.0184]
[1760302322160,0.018,4182.8,4179.5,0.6336]
[1760302322318,0.018,4182.8,4180.0,0.0184]
[1760302322718,0.018,4182.8,4180.1,2.39228726]
[1760302322719,0.4386,4182.7,4180.1,2.39228726]
[1760302322924,0.4386,4182.7,4181.3,2.39157055]
[1760302323123,1.92,4182.5,4180.5,2.39202362]
[1760302323353,1.92,4182.5,4180.3,2.39217281]
[1760302323525,0.4396,4182.7,4180.4,0.26332415]
[1760302323723,0.4396,4182.7,4176.9,0.002]
[1760302323925,0.4386,4182.6,4178.6,1.9384]
[1760302324151,0.4386,4182.6,4178.7,0.0184]
[1760302325056,0.001,4182.7,4179.3,2.5536]
[1760302325233,0.001,4182.7,4179.4,0.0184]
[1760302325436,0.001,4182.7,4179.6,0.6336]
[1760302325437,0.4386,4182.6,4179.6,0.6336]
[1760302325861,0.4386,4182.6,4179.4,0.0184]
[1760302326066,1.92,4182.4,4179.4,0.0184]
[1760302326363,2.2555,4182.1,4178.3,0.0184]
[1760302326567,0.6336,4181.7,4176.9,0.002]
[1760302326861,30.0,4181.7,4176.9,0.002]
[1760302327169,0.6336,4181.2,4177.0,0.0184]
[1760302327372,1.92,4180.8,4177.0,0.0184]
[1760302327855,0.4386,4180.7,4177.4,0.0184]
[1760302328055,1.92,4180.6,4177.4,0.0184]
[1760302328257,2.15586,4180.6,4177.4,0.0184]
[1760302328628,1.92,4180.4,4177.4,0.0184]
[1760302329331,0.4386,4180.3,4177.4,0.0184]
[1760302329634,16.895325,4180.8,4176.9,0.002]
[1760302329853,0.6336,4179.9,4176.9,0.002]
[1760302330028,0.2272,4177.4,4176.9,0.002]
[1760302330264,1.92,4177.2,4173.4,0.0224]
[1760302330460,0.4505,4177.1,4173.4,0.0224]
[1760302330659,2.469117,4176.9,4173.4,0.0224]
[1760302330956,0.4505,4176.8,4173.4,0.0224]
[1760302331161,0.1192,4177.3,4176.6,0.1192]
[1760302331489,4.77765,4177.9,4174.0,0.0224]
[1760302331692,1.92,4177.1,4174.0,0.0224]
[1760302331896,3.951978,4177.0,4174.0,0.0224]
[1760302332190,0.4505,4177.2,4174.0,0.0224]
[1760302332360,1.92,4177.0,4174.0,0.0224]
[1760302332555,1.92,4176.8,4169.5,0.958]
[1760302332760,8.256065,4176.5,4172.0,0.0224]
[1760302332960,0.60913879,4177.0,4172.0,0.0224]
[1760302332961,2.5536,4176.1,4172.0,0.0224]
[1760302333190,4.042065,4175.8,4172.0,0.0224]
[1760302333393,0.4505,4176.0,4172.7,0.0224]
[1760302333582,0.2272,4175.8,4172.7,0.0224]
[1760302334022,0.2272,4175.8,4170.6,0.6336]
[1760302334023,0.2272,4176.6,4173.4,0.0224]
[1760302334180,0.4505,4177.0,4173.4,0.0224]
[1760302334563,0.2272,4177.3,4173.4,0.0224]
[1760302334758,0.4505,4177.6,4173.4,0.0224]
[1760302335063,0.4505,4178.3,4173.4,0.0224]
[1760302335395,0.4505,4178.3,4173.6,0.6336]
[1760302335562,0.4505,4178.3,4174.0,0.6336]
[1760302335763,0.4505,4178.3,4174.2,0.6336]
[1760302335963,0.4505,4178.3,4174.3,0.0224]
[1760302336366,0.4505,4179.0,4174.5,0.6336]
[1760302336705,0.4505,4179.0,4174.6,0.0224]
[1760302336864,0.4505,4179.0,4173.3,0.002]
[1760302336865,1.43,4178.9,4173.3,0.002]
[1760302337193,0.6336,4178.7,4173.3,0.002]
[1760302337380,0.37208879,4178.6,4173.3,0.002]
[1760302337565,0.6336,4178.5,4173.3,0.002]
[1760302337767,0.6336,4178.3,4173.3,0.002]
[1760302337965,0.6336,4178.1,4173.3,0.002]
[1760302338166,0.6336,4177.9,4173.3,0.002]
[1760302338609,0.6777,4177.8,4173.3,0.002]
[1760302338776,0.6777,4177.8,4173.4,0.0224]
[1760302338970,0.6336,4177.7,4173.4,0.0224]
[1760302339701,0.6336,4177.5,4173.4,0.0224]
[1760302339871,0.6336,4177.3,4173.4,0.0224]
[1760302340068,0.6336,4177.3,4173.3,0.002]
[1760302340069,0.6336,4177.1,4173.3,0.002]
[1760302340473,0.4505,4177.0,4173.3,0.0244]
[1760302341370,0.1192,4176.9,4176.2,0.1192]
[1760302341594,0.2272,4177.8,4173.3,0.0244]
[1760302341595,0.4505,4176.8,4173.3,0.0244]
[1760302341806,0.4505,4176.8,4173.9,0.6336]
[1760302341994,0.4505,4176.8,4173.3,0.0244]
[1760302341995,0.4505,4176.8,4176.2,0.1192]
[1760302343382,0.4505,4176.8,4174.0,0.0224]
[1760302343695,1.92,4176.6,4173.3,0.0244]
[1760302343882,1.1358071,4176.5,4173.3,0.0244]
[1760302344074,0.4505,4176.5,4173.3,0.0244]
[1760302345103,22.76664845,4176.4,4173.3,0.0244]
[1760302345324,0.4505,4176.3,4173.3,0.0244]
[1760302345833,0.4505,4177.1,4173.3,0.0244]
[1760302347130,1.92,4177.0,4173.3,0.0244]
[1760302347301,0.23705,4177.0,4173.3,0.0244]
[1760302347624,0.4505,4176.9,4173.3,0.0244]
[1760302347822,3.502196,4176.8,4173.3,0.0244]
[1760302348023,0.4505,4176.7,4173.3,0.0244]
[1760302348825,0.37208879,4178.2,4173.3,0.0244]
[1760302349130,0.4505,4177.4,4173.3,0.0244]
[1760302350030,1.92,4177.2,4173.3,0.0244]
[1760302350202,0.4505,4177.1,4173.3,0.0244]
[1760302350914,0.4505,4177.1,4173.3,0.002]
[1760302351114,0.6336,4176.8,4173.3,0.002]
[1760302351316,0.6336,4176.4,4173.3,0.002]
[1760302351533,2.5536,4176.2,4173.3,0.002]
[1760302351719,2.5536,4176.0,4173.3,0.002]
[1760302352033,0.2272,4173.4,4173.3,0.002]
[1760302352428,0.6777,4173.4,4173.3,0.002]
[1760302352641,0.6336,4173.2,4172.4,0.002]
[1760302352802,0.6336,4173.2,4169.0,0.0244]
[1760302352803,4.855531,4172.9,4169.0,0.0244]
[1760302353004,0.6336,4173.2,4169.0,0.0244]
[1760302353005,1.92,4172.6,4169.0,0.0244]
[1760302353198,3.0480531,4172.8,4167.1,0.959]
[1760302353199,1.92,4172.1,4167.8,0.0284]
[1760302353412,0.6336,4172.4,4167.8,0.0284]
[1760302353732,0.1192,4171.2,4170.5,0.1192]
[1760302353907,0.2272,4170.6,4167.8,0.0284]
[1760302354107,0.2272,4170.6,4170.0,0.1192]
[1760302354307,0.2272,4170.6,4167.8,0.0284]
[1760302354819,0.4505,4171.1,4167.8,0.0284]
[1760302355134,0.2272,4171.4,4167.8,0.0284]
[1760302355298,0.2272,4171.4,4167.9,0.6336]
[1760302355500,0.4505,4172.1,4168.1,0.6336]
[1760302355736,0.4505,4172.1,4168.3,0.6336]
[1760302355899,0.4505,4172.0,4168.3,0.6336]
[1760302356101,1.92,4171.6,4168.2,0.15796]
[1760302356428,0.4505,4171.5,4168.2,0.0284]
[1760302356594,0.4505,4171.5,4168.3,0.6336]
[1760302356795,0.59928879,4172.3,4168.3,0.6336]
[1760302356796,1.92,4171.2,4168.3,0.6336]
[1760302357005,1.92,4171.2,4168.2,0.0284]
[1760302357006,0.4505,4171.1,4168.2,0.0284]
[1760302357415,2.642893,4171.0,4168.2,0.0284]
[1760302357627,1.92,4170.8,4168.2,0.0284]
[1760302357826,0.4505,4170.9,4169.9,2.39810428]
[1760302358015,0.4505,4170.9,4168.6,2.3988457]
[1760302358016,0.4505,4170.9,4169.8,2.39819106]
[1760302358223,0.4505,4170.9,4170.0,2.39807795]
[1760302358608,0.4505,4170.9,4168.7,0.6336]
[1760302358810,0.4505,4170.9,4170.0,2.39807628]
[1760302359045,0.4505,4170.9,4169.8,2.39819655]
[1760302359228,0.4505,4170.9,4169.9,2.39809875]
[1760302359546,2.39763241,4170.8,4168.2,0.6336]
[1760302359708,0.4505,4170.9,4169.5,2.39832139]
[1760302360034,0.4505,4170.9,4168.5,2.39894446]
[1760302360234,0.4505,4170.9,4169.7,2.3982008]
[1760302360461,0.4505,4170.9,4168.6,2.39888691]
[1760302360659,0.4505,4170.9,4169.8,2.39816056]
[1760302360956,0.4505,4170.9,4169.8,2.3981827]
[1760302361161,0.4505,4170.9,4170.0,2.39803438]
[1760302361361,0.4505,4170.9,4168.8,2.39877182]
[1760302361528,0.4505,4170.9,4169.0,2.39865675]
[1760302361735,0.4505,4170.9,4170.4,2.39784065]
[1760302362130,2.39686736,4172.2,4169.1,0.23986567]
[1760302362335,0.4369,4171.6,4170.8,2.397611]
[1760302362532,0.4369,4171.6,4168.9,0.6336]
[1760302362736,0.4369,4171.6,4170.8,2.3976181]
[1760302363061,0.4369,4171.6,4170.7,2.39767893]
[1760302363265,0.4369,4171.6,4170.9,2.39755006]
[1760302363468,0.4369,4171.6,4170.7,2.39763208]
[1760302363665,0.4369,4171.6,4169.2,0.0284]
[1760302363965,0.4369,4171.6,4170.8,2.39760766]
[1760302364470,0.1192,4171.7,4171.0,0.1192]
[1760302364657,0.2272,4172.3,4170.3,0.6336]
[1760302364863,0.4356,4172.5,4172.0,2.39693189]
[1760302365176,0.4356,4172.5,4170.5,2.39779402]
[1760302365177,0.2358,4172.8,4171.5,2.39716205]
[1760302365376,0.2358,4172.8,4171.6,0.23971621]
[1760302365681,0.4356,4172.7,4172.0,2.39692973]
[1760302365978,8.64918,4172.5,4170.2,2.39791038]
[1760302366136,2.39704921,4171.8,4170.4,2.39780892]
[1760302366466,4.31720563,4171.6,4170.4,2.39784457]
[1760302366782,1.92,4171.6,4170.4,0.23978446]
[1760302367062,1.92,4171.6,4171.0,2.39745113]
[1760302367264,1.92,4171.6,4170.4,0.23978446]
[1760302367484,0.4356,4171.7,4170.4,0.23978446]
[1760302367678,0.4356,4171.7,4171.4,2.39727341]
[1760302367964,0.4356,4171.6,4171.0,2.39745627]
[1760302368137,0.4356,4171.6,4169.8,2.39819655]
[1760302368333,0.4356,4171.6,4169.5,1.92]
[1760302368537,0.4356,4172.3,4169.8,0.6336]
[1760302368736,0.4356,4172.3,4171.1,2.39740072]
[1760302368969,1.92,4172.2,4171.1,2.39741435]
[1760302369169,2.39693275,4172.0,4170.9,2.39755272]
[1760302369468,1.92,4172.1,4170.8,2.39761332]
[1760302369765,2.39694389,4172.0,4169.7,2.39823437]
[1760302370069,2.39700185,4171.9,4170.9,2.39754088]
[1760302370369,0.4356,4172.3,4169.7,0.6336]
[1760302370570,0.2358,4172.8,4170.5,0.6336]
[1760302370760,0.2358,4172.8,4170.9,2.39756407]
[1760302370957,0.2358,4172.8,4172.0,2.39687877]
[1760302371158,0.2358,4172.8,4172.2,2.39680143]
[1760302371360,0.2358,4172.8,4171.0,0.23975641]
[1760302371599,0.2358,4172.8,4170.9,2.39756407]
[1760302371600,0.4356,4173.6,4170.2,2.39792149]
[1760302371759,0.4356,4173.6,4172.8,2.39645715]
[1760302371941,0.4356,4173.6,4170.4,1.92]
[1760302372141,0.4356,4173.6,4172.5,2.39663909]
[1760302372441,0.4356,4173.6,4172.3,2.39675696]
[1760302372641,2.39615988,4173.4,4171.4,0.23973246]
[1760302372874,2.83162617,4173.6,4172.1,2.39687317]
[1760302372875,1.92,4173.5,4172.1,2.39687317]
[1760302373186,0.6714,4173.9,4170.4,1.92]
[1760302373338,0.6714,4173.9,4172.4,2.3966998]
[1760302373542,0.6714,4173.9,4169.3,2.39846446]
[1760302373543,0.2358,4173.9,4169.3,2.39846446]
[1760302373746,2.39608763,4173.5,4169.4,1.92]
[1760302373976,0.80768879,4173.8,4170.6,2.5536]
[1760302374181,2.39630324,4173.1,4171.9,2.39698576]
[1760302374472,2.3556,4173.3,4171.9,2.39697797]
[1760302374684,2.39624269,4173.2,4173.0,0.1192]
[1760302374842,0.4356,4173.2,4170.9,2.39754389]
[1760302375045,0.4356,4173.2,4172.8,0.1192]
[1760302375240,0.1192,4173.5,4172.8,0.1192]
[1760302375474,2.83191354,4173.1,4172.8,0.1192]
[1760302375643,0.4356,4173.0,4172.8,0.1192]
[1760302375980,0.1192,4173.5,4172.8,0.1192]
[1760302376143,2.3556,4173.8,4170.7,1.92]
[1760302376144,0.4356,4173.8,4173.2,0.1192]
[1760302376346,2.83154857,4173.8,4173.2,0.1192]
[1760302376545,2.39605547,4173.6,4173.2,0.1192]
[1760302377077,0.4356,4174.4,4171.7,3.03070429]
[1760302377254,2.39565592,4174.3,4174.1,0.1192]
[1760302377578,0.4356,4174.3,4174.1,0.1192]
[1760302377942,2.39566863,4174.2,4174.1,0.1192]
[1760302378144,5.71963663,4174.2,4174.1,0.1192]
[1760302378387,2.3556,4174.2,4173.8,0.1192]
[1760302378542,2.39578871,4174.0,4172.7,2.39647765]
[1760302378748,2.39578871,4174.0,4172.8,2.39646233]
[1760302379446,1.92,4174.1,4172.8,0.47931034]
[1760302379655,0.4356,4174.7,4173.4,2.39612446]
[1760302379980,2.3954802,4174.6,4173.4,2.39610415]
[1760302380164,0.4356,4174.7,4172.4,0.6336]
[1760302380365,0.4356,4175.3,4174.0,2.39573535]
[1760302380678,0.001,4174.0,4173.9,2.39584082]
[1760302380985,0.001,4174.0,4173.9,2.6354249]
[1760302381550,3.409856,4173.9,4167.8,2.3993015]
[1760302381851,0.001,4174.0,4169.5,2.39833306]
[1760302381852,2.389,4172.9,4169.5,2.39833306]
[1760302382076,0.4356,4172.8,4168.8,2.39872827]
[1760302382346,2.39721084,4171.6,4170.0,2.39803002]
[1760302382552,2.39709384,4171.8,4170.1,2.39801868]
[1760302382753,2.39709384,4171.8,4170.4,2.39783733]
[1760302382977,2.39709384,4171.8,4169.1,2.39857343]
[1760302382978,0.4356,4172.0,4169.7,2.39821556]
[1760302383173,2.39739163,4171.2,4169.2,2.39850685]
[1760302383362,2.39739163,4171.2,4168.7,2.39880703]
[1760302383363,2.39750659,4171.0,4168.7,2.39880703]
[1760302383565,3.661131,4170.8,4168.7,2.398828]
[1760302383748,2.39814793,4169.9,4168.4,2.39898792]
[1760302383959,0.6714,4169.9,4168.5,0.24247367]
[1760302384272,0.6714,4169.9,4168.1,0.002]
[1760302384472,2.5536,4169.6,4168.1,0.002]
[1760302384660,0.6336,4169.5,4168.1,0.002]
[1760302384861,0.6336,4169.0,4168.1,0.002]
[1760302385066,2.39897102,4168.5,4168.1,0.002]
[1760302385261,2.39901353,4168.4,4168.1,0.002]
[1760302385462,2.39893495,4168.6,4168.1,0.002]
[1760302385662,0.4356,4168.3,4168.1,0.002]
[1760302386051,3.03209123,4169.3,4168.1,0.002]
[1760302386052,0.4356,4168.2,4168.1,0.002]
[1760302386498,3.75178296,4168.2,4168.1,0.002]
[1760302386798,3.11818296,4168.2,4168.1,0.002]
[1760302387155,2.83471712,4168.2,4168.1,0.002]
[1760302387554,7.38641812,4168.2,4168.1,0.002]
[1760302387776,7.72383712,4168.2,4168.1,0.002]
[1760302387979,5.38831712,4168.2,4168.1,0.002]
[1760302388180,2.3556,4168.2,4168.1,0.002]
[1760302388382,4.75471712,4168.2,4168.1,0.002]
[1760302389183,2.3556,4168.2,4168.1,0.002]
[1760302389560,6.87244712,4168.2,4168.1,0.002]
[1760302389756,9.61344712,4168.2,4168.1,0.002]
[1760302390085,4.75471712,4168.2,4168.1,0.002]
[1760302390293,10.38223023,4168.2,4168.1,0.002]
[1760302390491,10.75265236,4168.2,4168.1,0.002]
[1760302390787,12.31440837,4167.8,4167.7,0.002]
[1760302390986,0.6336,4167.4,4166.1,0.002]
[1760302391192,2.39974968,4167.2,4166.1,0.002]
[1760302391388,2.3676,4167.3,4166.1,0.24224311]
[1760302391558,0.4476,4167.3,4166.1,0.002]
[1760302391754,0.4476,4167.3,4166.2,2.40026883]
[1760302391989,0.4476,4168.2,4166.3,0.6336]
[1760302392585,0.4476,4168.1,4166.1,0.002]
[1760302392786,0.4476,4168.1,4166.4,2.40012777]
[1760302392988,0.4476,4168.1,4166.5,0.24001278]
[1760302393176,0.4476,4168.1,4166.6,2.4000384]
[1760302393383,2.3676,4168.1,4166.5,0.24001278]
[1760302393556,0.4476,4168.1,4166.5,0.24001278]
[1760302393757,0.4476,4168.1,4167.1,2.399731]
[1760302393961,0.4476,4168.1,4166.5,0.24001278]
[1760302393962,1.92,4168.0,4167.0,2.39979694]
[1760302394196,0.4476,4168.1,4167.1,2.39973021]
[1760302394617,2.62850344,4168.4,4166.1,0.002]
[1760302394618,0.23676,4168.0,4166.1,0.002]
[1760302394764,12.86248749,4167.6,4166.1,0.002]
[1760302394960,1.92,4167.9,4166.1,0.002]
[1760302395187,0.4476,4167.5,4166.1,0.002]
[1760302395391,2.39958303,4167.4,4166.1,0.002]
[1760302395579,2.39968132,4167.3,4166.1,0.002]
[1760302395777,1.92,4167.4,4166.1,0.002]
[1760302395778,2.39969724,4167.2,4166.1,0.002]
[1760302396079,2.3999808,4166.7,4166.1,0.002]
[1760302396281,2.40026883,4166.2,4166.1,0.002]
[1760302396681,4.76786883,4166.2,4166.1,0.002]
[1760302398198,2.3676,4166.2,4166.1,0.002]
[1760302398366,4.76786883,4166.2,4166.1,0.002]
[1760302398762,1.92,4166.2,4166.1,0.002]
[1760302399580,4.76786883,4166.2,4166.1,0.002]
[1760302399784,5.87825571,4166.2,4165.2,0.002]
[1760302399963,2.40084509,4165.2,4159.4,2.40414987]
[1760302400163,1.92,4164.2,4160.2,2.40373058]
[1760302400389,2.40222926,4162.8,4162.7,0.12]
[1760302400595,2.04,4162.7,4162.0,0.12]
[1760302400905,1.92,4162.5,4162.0,0.12]
[1760302401071,1.92,4162.5,4160.9,2.40331615]
[1760302401266,1.92,4162.3,4161.7,0.12]
[1760302401481,2.40270308,4162.0,4161.7,0.12]
[1760302401679,0.99383046,4162.4,4161.7,0.12]
[1760302401880,0.6336,4162.1,4159.6,0.4461]
[1760302402099,0.2295,4161.8,4160.3,2.40366621]
[1760302402305,0.2295,4161.8,4160.4,2.4035624]
[1760302402487,1.0812,4161.7,4160.0,2.40384519]
[1760302402795,0.4476,4161.6,4160.1,2.40378549]
[1760302402997,0.4476,4161.6,4160.3,2.40367107]
[1760302403368,0.4476,4161.6,4160.3,0.48075007]
[1760302403589,0.4476,4161.6,4160.2,2.40369185]
[1760302403774,0.4476,4161.5,4159.6,0.002]
[1760302403974,0.4476,4161.5,4160.2,2.4036743]
[1760302404186,0.4476,4161.4,4159.6,0.002]
[1760302404405,0.87383046,4161.4,4159.6,0.002]
[1760302404600,0.87383046,4161.4,4159.9,2.40390393]
[1760302404788,0.87383046,4161.4,4159.6,0.002]
[1760302405102,0.87383046,4161.4,4159.8,2.40394192]
[1760302405300,0.87383046,4161.4,4160.2,2.40372716]
[1760302405608,1.92,4161.2,4159.8,0.24059419]
[1760302405795,0.87383046,4161.3,4160.1,2.40377756]
[1760302405994,0.4476,4161.3,4159.8,0.24059419]
[1760302406205,0.4476,4161.3,4159.6,0.002]
[1760302406412,0.4476,4161.3,4160.2,2.40367564]
[1760302406609,0.4476,4161.3,4159.6,0.002]
[1760302406821,4.32315293,4161.2,4159.7,2.40401952]
[1760302407028,5.58089,4161.1,4159.6,0.002]
[1760302407310,3.436233,4160.5,4159.6,0.002]
[1760302407513,1.92,4160.3,4159.6,0.002]
[1760302407817,0.2295,4159.7,4159.6,0.002]
[1760302407998,3.05974998,4159.7,4159.6,0.002]
[1760302408199,1.10333046,4159.7,4159.6,0.002]
[1760302408583,0.6771,4159.7,4159.6,0.002]
[1760302409906,0.4476,4159.7,4159.6,0.002]
[1760302410090,0.4476,4160.4,4159.6,0.002]
[1760302410478,0.2295,4160.7,4159.6,0.24261834]
[1760302410724,0.4476,4161.7,4159.6,0.002]
[1760302410929,0.4476,4161.7,4159.6,0.6356]
[1760302411107,0.4476,4162.2,4159.7,2.84811952]
[1760302411307,0.4476,4162.2,4160.0,0.6336]
[1760302411616,0.4476,4162.2,4160.2,2.40373058]
[1760302411820,0.4476,4162.2,4161.1,2.40316636]
[1760302412034,0.4476,4162.2,4160.3,0.30373306]
[1760302412035,3.520846,4162.1,4160.3,0.30373306]
[1760302412181,3.520846,4162.1,4160.5,0.12]
[1760302412182,0.3495,4161.2,4160.5,0.12]
[1760302412381,0.4476,4161.1,4160.5,0.12]
[1760302412993,0.87383046,4161.1,4159.6,2.40602447]
[1760302413188,0.12,4160.9,4160.2,0.12]
[1760302413612,0.4476,4161.1,4160.6,0.12]
[1760302413817,0.4476,4161.0,4160.6,0.12]
[1760302413984,0.2295,4161.2,4160.6,0.12]
[1760302414191,2.402875,4161.7,4161.0,2.40323433]
[1760302414192,0.4476,4161.7,4161.0,2.40323433]
[1760302414503,0.4476,4161.7,4160.9,2.40331866]
[1760302414816,0.42623046,4162.5,4161.1,2.40320608]
[1760302415018,0.4446,4163.1,4161.2,0.4441]
[1760302415318,0.4446,4163.1,4162.1,2.40262451]
[1760302415636,0.4446,4163.1,4162.3,2.40246683]
[1760302415795,0.4446,4163.1,4162.4,2.40243969]
[1760302415983,0.4446,4163.1,4162.1,2.40262324]
[1760302415984,0.4446,4163.1,4162.3,2.40247165]
[1760302416185,0.4446,4163.1,4162.3,2.40250534]
[1760302416525,0.4446,4163.1,4162.4,2.4024557]
[1760302416716,0.4446,4163.1,4161.1,2.40321068]
[1760302416717,3.262125,4163.9,4162.8,2.40221022]
[1760302416887,0.4446,4163.7,4161.4,0.6336]
[1760302417205,0.4446,4163.7,4161.5,0.61523]
[1760302417401,0.4446,4163.7,4162.8,2.40217288]
[1760302417581,0.4446,4163.7,4163.1,2.40202989]
[1760302417788,0.4446,4163.7,4162.9,2.40211674]
[1760302418123,0.4446,4163.7,4162.9,2.40216069]
[1760302418331,0.4446,4163.7,4163.0,2.40207996]
[1760302418624,0.4446,4163.7,4161.7,2.40286421]
[1760302418925,0.4446,4163.7,4163.1,2.40202246]
[1760302419428,0.4446,4163.7,4163.3,2.40193547]
[1760302419635,0.4446,4163.7,4163.0,2.40209537]
[1760302419835,0.4363,4164.3,4163.4,2.40182884]
[1760302419987,1.92,4164.2,4162.1,0.1643]
[1760302420183,0.001,4164.3,4162.2,2.40257556]
[1760302420564,0.001,4164.3,4162.5,3.0360024]
[1760302420879,0.001,4164.3,4164.2,2.40142164]
[1760302421044,0.001,4164.3,4163.8,2.40159523]
[1760302421227,0.001,4164.3,4164.1,2.40143658]
[1760302421769,0.001,4164.3,4164.2,2.40142164]
[1760302422069,0.001,4164.3,4162.6,0.6336]
[1760302422371,0.001,4164.3,4163.9,2.40157168]
[1760302422535,0.001,4164.3,4164.0,2.40152836]
[1760302422742,0.001,4164.3,4163.9,2.40154864]
[1760302423068,0.001,4164.3,4164.0,2.40149453]
[1760302423369,0.001,4164.3,4164.2,2.40142164]
[1760302423567,0.4353,4164.2,4163.3,2.40189227]
[1760302423865,0.001,4164.3,4162.9,2.40212592]
[1760302424034,0.4353,4164.2,4163.1,2.40202699]
[1760302424239,1.92,4163.9,4163.5,0.12]
[1760302424564,1.92,4163.6,4161.8,0.69828642]
[1760302424733,4.32182538,4163.5,4163.1,0.12]
[1760302424936,2.40195173,4163.3,4163.1,0.12]
[1760302425172,2.40195173,4163.3,4161.2,0.458]
[1760302425173,0.4353,4163.4,4161.2,0.458]
[1760302425456,2.8371928,4163.4,4161.6,2.40289673]
[1760302425658,2.40224901,4162.8,4161.7,2.4028616]
[1760302425866,2.40227638,4162.8,4161.2,0.458]
[1760302426068,2.4021767,4162.9,4161.5,2.40296337]
[1760302426363,2.4021767,4162.9,4161.8,2.40279165]
[1760302426570,2.40212517,4163.0,4161.7,2.40285088]
[1760302426768,1.92,4163.0,4161.2,0.74413123]
[1760302427063,1.92,4163.3,4162.1,2.40262818]
[1760302427234,0.4494,4163.4,4161.5,0.6336]
[1760302427438,0.4494,4163.4,4162.6,2.40230518]
[1760302428023,0.4494,4163.4,4161.5,0.6336]
[1760302428024,2.40194076,4163.3,4161.5,2.4029747]
[1760302428230,4.32204227,4163.2,4162.2,2.40257153]
[1760302428425,4.32205799,4163.1,4162.1,2.40262336]
[1760302428631,2.85131217,4163.4,4160.5,2.40354593]
[1760302428632,1.92,4163.3,4160.5,2.40354593]
[1760302428832,0.4494,4163.4,4158.3,0.1603]
[1760302428833,0.6336,4163.1,4160.0,0.1606]
[1760302429055,1.92,4162.7,4160.8,2.4033515]
[1760302429258,2.649507,4162.5,4160.0,0.1606]
[1760302429474,1.3161618,4162.6,4160.1,2.40378837]
[1760302429475,1.92,4162.2,4160.1,2.40378837]
[1760302429769,2.40281071,4161.8,4160.6,2.40344318]
[1760302429973,0.6049,4161.7,4160.0,2.40384615]
[1760302430264,2.40235867,4162.6,4154.1,12.16933177]
[1760302430265,0.4436,4162.7,4160.1,0.6262]
[1760302430428,2.40240469,4162.5,4160.2,1.0913]
[1760302430634,0.4436,4162.7,4160.5,2.40355726]
[1760302430958,0.4436,4163.3,4162.1,2.4026259]
[1760302431155,4.32202757,4163.2,4162.1,2.4026259]
[1760302431464,2.3636,4163.3,4161.1,2.40321068]
[1760302431650,2.3636,4163.3,4161.0,0.4577]
[1760302431651,0.4436,4163.3,4161.9,2.40273491]
[1760302431879,0.4436,4163.3,4162.3,2.40251343]
[1760302432163,0.4436,4163.3,4162.4,2.40246011]
[1760302432370,0.4436,4163.3,4161.9,0.24027349]
[1760302432547,2.3636,4163.3,4162.4,2.40240931]
[1760302432746,0.4436,4163.3,4161.6,0.6336]
[1760302432948,0.4436,4163.3,4161.6,0.34943258]
[1760302433263,0.2172,4163.8,4161.5,0.4577]
[1760302433436,0.4494,4163.7,4162.0,2.40269101]
[1760302433638,4.32179586,4163.6,4161.8,0.6336]
[1760302433833,1.92,4163.6,4160.1,0.1685]
[1760302434075,2.40223665,4162.8,4161.5,2.40293521]
[1760302434241,0.447,4162.8,4161.7,2.40281887]
[1760302434441,0.447,4162.8,4162.1,2.40259045]
[1760302434855,0.447,4163.6,4161.5,0.6336]
[1760302435173,0.2148,4163.9,4162.7,0.12]
[1760302435373,0.2148,4163.9,4163.5,0.12]
[1760302435536,0.447,4163.8,4163.5,0.12]
[1760302436362,0.001,4163.9,4163.8,2.40165233]
[1760302436874,0.001,4163.9,4163.7,0.12]
[1760302437492,0.001,4163.9,4163.8,2.40165233]
[1760302437780,0.001,4163.9,4163.8,3.49295233]
[1760302438367,0.001,4164.3,4164.2,3.03502164]
[1760302438944,0.001,4164.3,4164.2,3.49272164]
[1760302439456,0.001,4164.3,4164.2,2.85912164]
[1760302439640,0.001,4164.3,4164.2,2.40142164]
[1760302440344,1.92,4164.2,4162.8,0.4577]
[1760302440571,0.001,4164.3,4163.4,2.40187521]
[1760302440880,0.001,4164.3,4163.4,2.40186614]
[1760302441084,0.001,4164.3,4162.2,0.622]
[1760302441085,5.460288,4164.1,4162.2,0.622]
[1760302441252,2.132398,4164.1,4162.9,2.40217011]
[1760302441451,2.132398,4164.1,4162.2,0.622]
[1760302441681,1.92,4164.1,4163.0,2.40205876]
[1760302441865,1.92,4164.1,4162.2,0.622]
[1760302441866,0.001,4164.3,4162.2,0.1643]
[1760302442066,0.001,4164.3,4164.2,2.40142164]
[1760302443148,0.001,4164.3,4163.4,2.40185039]
[1760302443149,0.001,4164.3,4163.3,0.6336]
[1760302443555,0.001,4164.3,4164.2,2.40142164]
[1760302443991,0.001,4164.3,4164.2,3.49272164]
[1760302444353,0.001,4164.3,4164.2,4.1041841]
[1760302444893,0.001,4164.3,4164.2,2.85912164]
[1760302445671,0.001,4164.3,4164.2,3.49272164]
[1760302446163,0.001,4164.4,4164.3,3.03496397]
[1760302446364,0.001,4165.2,4164.7,3.03473333]
[1760302446796,0.001,4165.2,4164.7,3.49243333]
[1760302446962,0.001,4165.2,4164.7,4.08179802]
[1760302447162,0.001,4165.2,4164.7,6.00179802]
[1760302447585,0.001,4165.2,4164.7,6.12179802]
[1760302448694,0.001,4165.2,4164.7,6.00179802]
[1760302451561,1e-08,4165.3,4165.2,3.03444509]
[1760302451761,1e-08,4165.3,4165.2,3.7953896]
[1760302452177,1e-08,4165.3,4165.2,5.7153896]
[1760302454160,1e-08,4165.3,4165.2,3.1617896]